fUSD/lending_fUSD_20260601
["ID","MTS","AMOUNT","RATE_DAILY","PERIOD"]
[423660707,1780283450000,-1269.48,0.000395,120]
[423660709,1780283450000,-1269.48,0.000395,120]
[423660710,1780283450000,-1269.48,0.000395,120]
[423660721,1780283450000,-1269.48,0.000395,120]
[423660713,1780283450000,-1269.48,0.000395,120]
[423660717,1780283450000,-1269.48,0.000395,120]
[423660714,1780283450000,-1269.48,0.000395,120]
[423660712,1780283450000,-1269.48,0.000395,120]
[423660724,1780283450000,-1269.48,0.000395,120]
[423660715,1780283450000,-1269.48,0.000395,120]
[423660718,1780283450000,-1269.48,0.000395,120]
[423660719,1780283450000,-1269.48,0.000395,120]
[423660720,1780283450000,-1269.48,0.000395,120]
[423660716,1780283450000,-1269.48,0.000395,120]
[423660701,1780283450000,-500.0,0.000395,120]
[423660722,1780283450000,-1269.48,0.000395,120]
[423660705,1780283450000,-1269.48,0.000395,120]
[423660689,1780283450000,-800.0,0.000395,61]
[423660702,1780283450000,-300.0,0.000395,120]
[423660683,1780283450000,-800.0,0.000395,120]
[423660687,1780283450000,-800.0,0.000395,61]
[423660685,1780283450000,-500.0,0.000395,30]
[423660684,1780283450000,-468.3212385,0.000395,120]
[423660682,1780283450000,-800.0,0.000395,120]
[423660686,1780283450000,-3620.00777054,0.000395,5]
[423660732,1780283450000,-308.82352941,0.000395,12]
[423660699,1780283450000,-800.0,0.000395,61]
[423660692,1780283450000,-800.0,0.000395,61]
[423660690,1780283450000,-800.0,0.000395,61]
[423660691,1780283450000,-800.0,0.000395,61]
[423660696,1780283450000,-800.0,0.000395,61]
[423660695,1780283450000,-800.0,0.000395,61]
[423660693,1780283450000,-800.0,0.000395,61]
[423660694,1780283450000,-800.0,0.000395,61]
[423660697,1780283450000,-800.0,0.000395,61]
[423660698,1780283450000,-800.0,0.000395,61]
[423660700,1780283450000,-7562.08801554,0.000395,120]
[423660704,1780283450000,-501.16,0.000395,120]
[423660703,1780283450000,-543.68619862,0.000395,120]
[423660735,1780283450000,-3736.0,0.000395,30]
[423660688,1780283450000,-800.0,0.000395,61]
[423660728,1780283450000,-1269.71445316,0.000395,120]
[423660755,1780283450000,-7779.7,0.000395,120]
[423660752,1780283450000,-7779.7,0.000395,120]
[423660753,1780283450000,-7779.7,0.000395,120]
[423660754,1780283450000,-7779.7,0.000395,120]
[423660759,1780283450000,-7779.7,0.000395,120]
[423660757,1780283450000,-7779.7,0.000395,120]
[423660758,1780283450000,-7779.7,0.000395,120]
[423660762,1780283450000,-7779.7,0.000395,120]
[423660765,1780283450000,-7779.7,0.000395,120]
[423660760,1780283450000,-7779.7,0.000395,120]
[423660761,1780283450000,-7779.7,0.000395,120]
[423660766,1780283450000,-7779.77639898,0.000395,120]
[423660763,1780283450000,-7779.7,0.000395,120]
[423660767,1780283450000,-2345388.13212412,0.000395,120]
[423660769,1780283450000,-500.0,0.000395,120]
[423660768,1780283450000,-1939.45669119,0.000395,120]
[423660770,1780283450000,-1618.76632722,0.000395,120]
[423660771,1780283450000,-467.97099624,0.000395,120]
[423660772,1780283450000,-436.19646076,0.000395,120]
[423660734,1780283450000,-500.0,0.000395,120]
[423660764,1780283450000,-7779.7,0.000395,120]
[423660750,1780283450000,-7779.7,0.000395,120]
[423660756,1780283450000,-7779.7,0.000395,120]
[423660751,1780283450000,-7779.7,0.000395,120]
[423660729,1780283450000,-476.2202,0.000395,120]
[423660733,1780283450000,-624.49815136,0.000395,120]
[423660727,1780283450000,-1269.48,0.000395,120]
[423660725,1780283450000,-1269.48,0.000395,120]
[423660749,1780283450000,-7779.7,0.000395,120]
[423660736,1780283450000,-487.0,0.000395,120]
[423660730,1780283450000,-500.0,0.000395,60]
[423660731,1780283450000,-454.510864,0.000395,60]
[423660746,1780283450000,-7779.7,0.000395,120]
[423660737,1780283450000,-511.58,0.000395,120]
[423660726,1780283450000,-1269.48,0.000395,120]
[423660748,1780283450000,-7779.7,0.000395,120]
[423660738,1780283450000,-1073.26740045,0.000395,30]
[423660740,1780283450000,-607.25828362,0.000395,120]
[423660739,1780283450000,-5633.0,0.000395,120]
[423660744,1780283450000,-7779.7,0.000395,120]
[423660742,1780283450000,-2456476.05,0.000395,120]
[423660743,1780283450000,-7779.7,0.000395,120]
[423660741,1780283450000,-21196.81465438,0.000395,120]
[423660745,1780283450000,-7779.7,0.000395,120]
[423660747,1780283450000,-7779.7,0.000395,120]
[423660786,1780283463000,-493.7312536,0.00035558,2]
[423660785,1780283463000,-300.0,0.00035558,2]
[423660790,1780283463000,-2281.16,0.00038356,2]
[423660781,1780283463000,-172.25,0.0002966,30]
[423660776,1780283463000,-157.33,0.00028861,30]
[423660777,1780283463000,-172.25,0.00029118,7]
[423660775,1780283463000,-172.25,0.00028848,30]
[423660778,1780283463000,-157.33,0.0002913,7]
[423660773,1780283463000,-151.0,0.00018433,2]
[423660779,1780283463000,-172.25,0.00029389,2]
[423660774,1780283463000,-1500.0,0.00027397,2]
[423660788,1780283463000,-2281.16,0.00038356,2]
[423660780,1780283463000,-157.33,0.00029399,2]
[423660789,1780283463000,-2281.16,0.00038356,2]
[423660800,1780283463000,-806439.14353537,0.000395,120]
[423660784,1780283463000,-1531.52,0.00030165,2]
[423660783,1780283463000,-157.33,0.00029938,7]
[423660796,1780283463000,-2313.220926,0.00038356,30]
[423660798,1780283463000,-161.0,0.00038544,11]
[423660795,1780283463000,-151.0,0.00038356,30]
[423660797,1780283463000,-394.44,0.000384,120]
[423660794,1780283463000,-151.0,0.00038356,30]
[423660799,1780283463000,-2319.0,0.00039185,11]
[423660792,1780283463000,-2281.16,0.00038356,2]
[423660793,1780283463000,-2281.16,0.00038356,2]
[423660782,1780283463000,-157.33,0.00029669,30]
[423660787,1780283463000,-2281.16,0.00038356,2]
[423660801,1780283463000,-85847.30505285,0.000395,120]
[423660791,1780283463000,-2281.16,0.00038356,2]
[423660830,1780283464000,-172.25,0.00030743,7]
[423660823,1780283464000,-195.38,0.00029401,7]
[423660824,1780283464000,-195.38,0.0002948,30]
[423660821,1780283464000,-195.38,0.00029243,30]
[423660820,1780283464000,-195.38,0.00029165,7]
[423660815,1780283464000,-541.0,0.00027137,2]
[423660825,1780283464000,-195.38,0.00029558,2]
[423660819,1780283464000,-195.38,0.00029086,2]
[423660817,1780283464000,-195.38,0.00028928,7]
[423660828,1780283464000,-172.25,0.00030472,30]
[423660831,1780283464000,-157.33,0.00030746,7]
[423660822,1780283464000,-195.38,0.00029322,2]
[423660818,1780283464000,-195.38,0.00029007,30]
[423660826,1780283464000,-172.25,0.00029931,7]
[423660809,1780283464000,-155.05,0.000185,2]
[423660816,1780283464000,-3639.0,0.0002855,2]
[423660812,1780283464000,-1397.6292676,0.0002255,2]
[423660810,1780283464000,-454.99,0.0002255,2]
[423660811,1780283464000,-522.02000001,0.0002255,2]
[423660814,1780283464000,-3639.0,0.0002555,2]
[423660808,1780283464000,-87.1070317,0.00038356,2]
[423660805,1780283464000,-208.86642012,0.000373,30]
[423660807,1780283464000,-157.33,0.00030207,2]
[423660806,1780283464000,-791.13357988,0.00038356,2]
[423660804,1780283464000,-480.26498993,0.00038356,2]
[423660802,1780283464000,-20234.7146233,0.000395,120]
[423660803,1780283464000,-195.38,0.0002885,2]
[423660833,1780283464000,-157.33,0.00031015,2]
[423660827,1780283464000,-172.25,0.00030202,2]
[423660832,1780283464000,-172.25,0.00031014,2]
[423660813,1780283464000,-1264.36073239,0.0002255,2]
[423660829,1780283464000,-157.33,0.00030477,30]
[423660861,1780283464000,-662.48292782,0.000395,120]
[423660860,1780283464000,-12029.00927818,0.000395,120]
[423660859,1780283464000,-155.05,0.000214,2]
[423660857,1780283464000,-1243.81132961,0.000395,120]
[423660858,1780283464000,-384.65,0.000395,120]
[423660862,1780283464000,-2196.5771902,0.000395,120]
[423660854,1780283464000,-3617.35026442,0.000395,120]
[423660855,1780283464000,-644.1737403,0.000395,120]
[423660856,1780283464000,-1738.44831125,0.000395,120]
[423660853,1780283464000,-195.38,0.00029637,7]
[423660851,1780283464000,-663.7042298,0.000395,120]
[423660845,1780283464000,-2313.220926,0.00038356,30]
[423660846,1780283464000,-2319.0,0.00038864,11]
[423660848,1780283464000,-400.0,0.000395,120]
[423660863,1780283464000,-2466.90443037,0.000395,120]
[423660849,1780283464000,-13217.90996118,0.000395,120]
[423660835,1780283464000,-3639.0,0.0003155,2]
[423660843,1780283464000,-2281.16,0.00038356,2]
[423660834,1780283464000,-172.3,0.00031285,30]
[423660839,1780283464000,-500.0,0.00036552,2]
[423660838,1780283464000,-541.0,0.00035947,11]
[423660836,1780283464000,-300.0,0.00035558,2]
[423660840,1780283464000,-151.0,0.00037299,2]
[423660841,1780283464000,-922.65439849,0.00038356,2]
[423660842,1780283464000,-2281.16,0.00038356,2]
[423660850,1780283464000,-4997.72224353,0.000395,120]
[423660847,1780283464000,-171161.11957053,0.000395,120]
[423660837,1780283464000,-300.0,0.00035558,2]
[423660852,1780283464000,-3713.08295613,0.000395,120]
[423660844,1780283464000,-2281.24742781,0.00038356,2]
[423660865,1780283465000,1000.0,0.00028335,120]
[423660864,1780283465000,-151.0,0.000219,2]
[423660866,1780283478000,-2000.0,0.00011867,2]
[423660868,1780283675000,249.71645632,0.0001,3]
[423660869,1780283739000,257.28362165,0.0001,3]
[423660870,1780283752000,235.74837311,8.771e-05,7]
[423660871,1780283753000,235.74837311,8.946e-05,7]
[423660872,1780283754000,235.74837311,9.209e-05,7]
[423660873,1780283755000,235.74837311,9.472e-05,7]
[423660874,1780283756000,235.74837314,9.823e-05,7]
[423660875,1780283799000,333.97597934,0.0001,3]
[423660876,1780283814000,294.37,0.00030082,120]
[423660877,1780283822000,260.0,0.00027945,120]
[423660878,1780283862000,273.28195168,0.0001,3]
[423660879,1780283924000,274.51351911,0.0001,3]
[423660881,1780283939000,185.17,0.00030136,120]
[423660884,1780284112000,2226.48255283,0.00030136,120]
[423660886,1780284271000,158.99,0.00028767,120]
[423660887,1780284364000,500.0,0.00029147,120]
[423660904,1780284589000,500.0,0.00029147,120]
[423660905,1780284602000,370.930218,0.0001,3]
[423660917,1780284631000,-1000.0,9.397e-05,2]
[423660913,1780284631000,-353.0,9.039e-05,2]
[423660914,1780284631000,-14741.62818237,9.04e-05,2]
[423660909,1780284631000,-285.816657,8.82e-05,2]
[423660912,1780284631000,-328.57642983,9.039e-05,2]
[423660911,1780284631000,-1200.0,9.038e-05,2]
[423660916,1780284631000,-2000.53,9.397e-05,2]
[423660915,1780284631000,-500.0,9.228e-05,2]
[423660910,1780284631000,-157.11,8.864e-05,2]
[423660919,1780284631000,-328.57642983,9.784e-05,2]
[423660922,1780284631000,-2000.0,9.888e-05,2]
[423660920,1780284631000,-167.09,9.785e-05,2]
[423660923,1780284631000,-150.0,9.899e-05,2]
[423660924,1780284631000,-600.0,9.899e-05,2]
[423660921,1780284631000,-205.0,9.8e-05,2]
[423660925,1780284631000,-500.0,9.899e-05,2]
[423660927,1780284631000,-113786.48968695,9.9e-05,2]
[423660928,1780284631000,-44980.29889247,9.9e-05,2]
[423660926,1780284631000,-821315.43146037,9.9e-05,2]
[423660918,1780284631000,-291.22,9.46e-05,2]
[423660993,1780284637000,-1180.01410436,0.0001,2]
[423660992,1780284637000,-379.31979851,0.0001,2]
[423660994,1780284637000,-11384.77973822,0.0001,2]
[423660991,1780284637000,-1680.0,9.942e-05,2]
[423660987,1780284637000,-500.0,9.899e-05,2]
[423660990,1780284637000,-1519917.77996021,9.9e-05,2]
[423660995,1780284637000,-2172.81891646,0.0001,2]
[423660989,1780284637000,-231.96652225,9.899e-05,2]
[423660988,1780284637000,-193.85137169,9.899e-05,2]
[423660997,1780284637000,-186.30838096,0.00010088,2]
[423661003,1780284637000,-2172.81891646,0.0001019,2]
[423660999,1780284637000,-274.51351911,0.00010088,2]
[423660996,1780284637000,-4000.0,0.00010027,2]
[423661001,1780284637000,-15915.92879152,0.00010159,2]
[423661002,1780284637000,-246.73443203,0.00010159,2]
[423661000,1780284637000,-262.92337865,0.000101,2]
[423661004,1780284637000,-35596.8179,0.000102,2]
[423661006,1780284637000,-1500000.0,0.000102,2]
[423661005,1780284637000,-2500.0,0.000102,2]
[423661007,1780284637000,-166.66,0.00010259,2]
[423660998,1780284637000,-273.28195168,0.00010088,2]
[423661042,1780284638000,-150.0,0.00010746,2]
[423661046,1780284638000,-150.0,0.00010756,2]
[423661041,1780284638000,-188.40616197,0.00010737,2]
[423661045,1780284638000,-150.0,0.00010754,2]
[423661038,1780284638000,-150.0,0.00010721,2]
[423661039,1780284638000,-188.40616197,0.00010725,2]
[423661040,1780284638000,-150.0,0.00010728,2]
[423661043,1780284638000,-150.0,0.00010746,2]
[423661036,1780284638000,-150.0,0.00010712,2]
[423661044,1780284638000,-188.40616197,0.00010749,2]
[423661049,1780284638000,-188.40616197,0.00010773,2]
[423661052,1780284638000,-150.0,0.00010781,2]
[423661050,1780284638000,-4000.0,0.00010779,2]
[423661048,1780284638000,-150.0,0.00010765,2]
[423661051,1780284638000,-150.0,0.0001078,2]
[423661037,1780284638000,-188.40616197,0.00010713,2]
[423661059,1780284638000,-150.0,0.00010816,2]
[423661053,1780284638000,-188.40616197,0.00010785,2]
[423661055,1780284638000,-150.0,0.00010806,2]
[423661054,1780284638000,-188.40616197,0.00010797,2]
[423661056,1780284638000,-188.40616197,0.00010809,2]
[423661057,1780284638000,-150.0,0.00010809,2]
[423661058,1780284638000,-150.0,0.00010816,2]
[423661060,1780284638000,-188.40616197,0.00010821,2]
[423661047,1780284638000,-188.40616197,0.00010761,2]
[423661033,1780284638000,-1500.0,0.000107,2]
[423661029,1780284638000,-2172.81891646,0.0001069,2]
[423661034,1780284638000,-188.40616197,0.00010701,2]
[423661008,1780284638000,-391.60705562,0.00010266,2]
[423661010,1780284638000,-207764.38249351,0.000103,2]
[423661011,1780284638000,-328.57642983,0.00010429,2]
[423661009,1780284638000,-4000.0,0.00010278,2]
[423661012,1780284638000,-4000.0,0.00010529,2]
[423661013,1780284638000,-166.66,0.00010597,2]
[423661015,1780284638000,-1675.11419243,0.00010601,2]
[423661018,1780284638000,-150.0,0.00010677,2]
[423661020,1780284638000,-150.0,0.00010677,2]
[423661017,1780284638000,-150.0,0.00010677,2]
[423661014,1780284638000,-5000.0,0.000106,2]
[423661035,1780284638000,-150.0,0.00010703,2]
[423661016,1780284638000,-150.0,0.00010677,2]
[423661021,1780284638000,-150.0,0.00010677,2]
[423661022,1780284638000,-150.0,0.00010677,2]
[423661024,1780284638000,-188.40616197,0.00010677,2]
[423661023,1780284638000,-150.0,0.00010677,2]
[423661027,1780284638000,-153.61,0.00010688,2]
[423661025,1780284638000,-150.0,0.00010677,2]
[423661028,1780284638000,-188.40616197,0.00010689,2]
[423661026,1780284638000,-150.0,0.00010677,2]
[423661032,1780284638000,-1500.0,0.000107,2]
[423661031,1780284638000,-3027421.69801661,0.000107,2]
[423661030,1780284638000,-500.0,0.00010699,2]
[423661019,1780284638000,-150.0,0.00010677,2]
[423661061,1780284638000,-150.0,0.00010831,2]
[423661071,1780284638000,-188.40616197,0.0001088,2]
[423661068,1780284638000,-150.0,0.00010857,2]
[423661092,1780284638000,-150.0,0.00010956,2]
[423661095,1780284638000,-150.0,0.0001096,2]
[423661094,1780284638000,-150.0,0.00010959,2]
[423661097,1780284638000,-418.87,0.00010969,2]
[423661096,1780284638000,-188.40616197,0.00010964,2]
[423661104,1780284638000,-150.0,0.00010991,2]
[423661098,1780284638000,-500.0,0.00010973,2]
[423661100,1780284638000,-188.40616197,0.00010976,2]
[423661105,1780284638000,-150.0,0.00010993,2]
[423661099,1780284638000,-150.0,0.00010973,2]
[423661103,1780284638000,-188.40616197,0.00010988,2]
[423661091,1780284638000,-150.0,0.00010956,2]
[423661102,1780284638000,-150.0,0.00010986,2]
[423661106,1780284638000,-188.40616197,0.00011,2]
[423661108,1780284638000,-188.40616197,0.00011012,2]
[423661109,1780284638000,-188.40616197,0.00011024,2]
[423661111,1780284638000,-150.0,0.00011026,2]
[423661112,1780284638000,-150.0,0.00011028,2]
[423661113,1780284638000,-4000.0,0.0001103,2]
[423661110,1780284638000,-150.0,0.00011026,2]
[423661115,1780284638000,-150.0,0.00011038,2]
[423661114,1780284638000,-188.40616197,0.00011036,2]
[423661116,1780284638000,-188.40616197,0.00011048,2]
[423661062,1780284638000,-188.40616197,0.00010832,2]
[423661107,1780284638000,-150.0,0.00011012,2]
[423661093,1780284638000,-150.0,0.00010959,2]
[423661101,1780284638000,-150.0,0.00010984,2]
[423661089,1780284638000,-150.0,0.0001094,2]
[423661090,1780284638000,-188.40616197,0.00010952,2]
[423661069,1780284638000,-188.40616197,0.00010868,2]
[423661067,1780284638000,-188.40616197,0.00010856,2]
[423661066,1780284638000,-150.0,0.00010852,2]
[423661063,1780284638000,-150.0,0.00010835,2]
[423661065,1780284638000,-150.0,0.00010851,2]
[423661070,1780284638000,-150.0,0.00010874,2]
[423661072,1780284638000,-150.0,0.00010883,2]
[423661073,1780284638000,-150.0,0.00010886,2]
[423661074,1780284638000,-150.0,0.00010886,2]
[423661075,1780284638000,-255.0,0.00010889,2]
[423661081,1780284638000,-150.0,0.00010914,2]
[423661064,1780284638000,-188.40616197,0.00010844,2]
[423661086,1780284638000,-166.66,0.00010936,2]
[423661080,1780284638000,-150.0,0.00010914,2]
[423661088,1780284638000,-188.40616197,0.0001094,2]
[423661087,1780284638000,-2351.0,0.00010936,2]
[423661084,1780284638000,-188.40616197,0.00010928,2]
[423661082,1780284638000,-188.40616197,0.00010916,2]
[423661085,1780284638000,-150.0,0.00010935,2]
[423661078,1780284638000,-188.40616197,0.00010904,2]
[423661079,1780284638000,-150.0,0.00010909,2]
[423661077,1780284638000,-150.0,0.00010896,2]
[423661076,1780284638000,-188.40616197,0.00010892,2]
[423661083,1780284638000,-150.0,0.00010921,2]
[423661154,1780284639000,-76822.64920054,0.00011099,2]
[423661156,1780284639000,-188.40616197,0.00011108,2]
[423661155,1780284639000,-76822.64920054,0.00011099,2]
[423661157,1780284639000,-150.0,0.00011115,2]
[423661147,1780284639000,-76822.64920054,0.00011099,2]
[423661148,1780284639000,-76822.64920054,0.00011099,2]
[423661153,1780284639000,-76822.64920054,0.00011099,2]
[423661151,1780284639000,-76822.64920054,0.00011099,2]
[423661149,1780284639000,-76822.64920054,0.00011099,2]
[423661158,1780284639000,-150.0,0.00011116,2]
[423661152,1780284639000,-76822.64920054,0.00011099,2]
[423661150,1780284639000,-76822.64920054,0.00011099,2]
[423661159,1780284639000,-300.0,0.00011118,2]
[423661166,1780284639000,-188.40616197,0.00011144,2]
[423661161,1780284639000,-188.40616197,0.0001112,2]
[423661164,1780284639000,-188.40616197,0.00011132,2]
[423661162,1780284639000,-2000.0,0.00011124,2]
[423661163,1780284639000,-150.0,0.0001113,2]
[423661165,1780284639000,-150.0,0.00011141,2]
[423661168,1780284639000,-150.0,0.00011151,2]
[423661167,1780284639000,-150.0,0.00011151,2]
[423661170,1780284639000,-150.0,0.0001116,2]
[423661169,1780284639000,-188.40616197,0.00011156,2]
[423661172,1780284639000,-150.0,0.00011165,2]
[423661171,1780284639000,-150.0,0.00011165,2]
[423661176,1780284639000,-1675.11419242,0.00011184,2]
[423661160,1780284639000,-58406.21721842,0.00011119,2]
[423661146,1780284639000,-76822.64920058,0.00011099,2]
[423661120,1780284639000,-3600.06620662,0.00011057,2]
[423661144,1780284639000,-58406.21721842,0.00011099,2]
[423661117,1780284639000,-153.43254317,0.00011056,2]
[423661119,1780284639000,-186.30838096,0.00011057,2]
[423661118,1780284639000,-186.30838096,0.00011057,2]
[423661174,1780284639000,-188.40616197,0.00011168,2]
[423661121,1780284639000,-188.40616197,0.0001106,2]
[423661123,1780284639000,-150.0,0.00011064,2]
[423661124,1780284639000,-5000.0,0.00011066,2]
[423661122,1780284639000,-150.0,0.00011061,2]
[423661125,1780284639000,-1129.91924382,0.00011067,2]
[423661129,1780284639000,-150.0,0.00011072,2]
[423661126,1780284639000,-627.82777298,0.00011067,2]
[423661127,1780284639000,-5000.0,0.00011067,2]
[423661128,1780284639000,-646.76352111,0.00011067,2]
[423661131,1780284639000,-188.40616197,0.00011072,2]
[423661132,1780284639000,-150.0,0.00011072,2]
[423661130,1780284639000,-150.0,0.00011072,2]
[423661133,1780284639000,-188.40616197,0.00011084,2]
[423661135,1780284639000,-150.0,0.00011095,2]
[423661140,1780284639000,-781.56714637,0.00011098,2]
[423661141,1780284639000,-300.0,0.00011098,2]
[423661134,1780284639000,-150.0,0.00011089,2]
[423661136,1780284639000,-150.0,0.00011095,2]
[423661139,1780284639000,-307.8259872,0.00011098,2]
[423661138,1780284639000,-300.0,0.00011098,2]
[423661137,1780284639000,-188.40616197,0.00011096,2]
[423661142,1780284639000,-58406.21721846,0.00011099,2]
[423661143,1780284639000,-58406.21721842,0.00011099,2]
[423661145,1780284639000,-58406.21721842,0.00011099,2]
[423661173,1780284639000,-150.0,0.00011167,2]
[423661175,1780284639000,-188.40616197,0.0001118,2]
[423661179,1780284639000,-150.0,0.000112,2]
[423661211,1780284639000,-150.0,0.00011321,2]
[423661212,1780284639000,-188.40616197,0.00011324,2]
[423661213,1780284639000,-188.40616197,0.00011336,2]
[423661208,1780284639000,-150.0,0.00011305,2]
[423661214,1780284639000,-150.0,0.00011336,2]
[423661215,1780284639000,-455.5,0.00011337,2]
[423661216,1780284639000,-150.0,0.0001134,2]
[423661218,1780284639000,-188.40616197,0.00011348,2]
[423661217,1780284639000,-150.0,0.00011347,2]
[423661228,1780284639000,-150.0,0.0001138,2]
[423661220,1780284639000,-153.61,0.00011356,2]
[423661223,1780284639000,-150.0,0.00011373,2]
[423661227,1780284639000,-58406.21721842,0.00011378,2]
[423661224,1780284639000,-150.0,0.00011375,2]
[423661225,1780284639000,-150.0,0.00011375,2]
[423661222,1780284639000,-188.40616197,0.00011372,2]
[423661226,1780284639000,-300.0,0.00011377,2]
[423661230,1780284639000,-150.0,0.00011388,2]
[423661231,1780284639000,-150.0,0.00011388,2]
[423661229,1780284639000,-188.40616197,0.00011384,2]
[423661232,1780284639000,-188.40616197,0.00011396,2]
[423661236,1780284639000,-188.40616197,0.0001142,2]
[423661235,1780284639000,-150.0,0.00011409,2]
[423661234,1780284639000,-188.40616197,0.00011408,2]
[423661233,1780284639000,-150.0,0.00011399,2]
[423661237,1780284639000,-150.0,0.00011424,2]
[423661177,1780284639000,-188.40616197,0.00011192,2]
[423661210,1780284639000,-188.40616197,0.00011312,2]
[423661209,1780284639000,-150.0,0.00011309,2]
[423661221,1780284639000,-188.40616197,0.0001136,2]
[423661205,1780284639000,-150.0,0.00011296,2]
[423661207,1780284639000,-150.0,0.00011305,2]
[423661181,1780284639000,-150.0,0.00011204,2]
[423661180,1780284639000,-188.40616197,0.00011204,2]
[423661183,1780284639000,-150.0,0.00011218,2]
[423661189,1780284639000,-150.0,0.00011244,2]
[423661185,1780284639000,-150.0,0.0001123,2]
[423661190,1780284639000,-500.0,0.00011247,2]
[423661188,1780284639000,-188.40616197,0.0001124,2]
[423661184,1780284639000,-188.40616197,0.00011228,2]
[423661182,1780284639000,-188.40616197,0.00011216,2]
[423661187,1780284639000,-150.0,0.00011235,2]
[423661186,1780284639000,-150.0,0.00011235,2]
[423661191,1780284639000,-300.0,0.00011248,2]
[423661192,1780284639000,-150.0,0.00011248,2]
[423661178,1780284639000,-150.0,0.00011192,2]
[423661194,1780284639000,-188.40616197,0.00011252,2]
[423661193,1780284639000,-58406.21721842,0.00011249,2]
[423661206,1780284639000,-188.40616197,0.000113,2]
[423661203,1780284639000,-188.40616197,0.00011288,2]
[423661202,1780284639000,-188.40616197,0.00011276,2]
[423661199,1780284639000,-150.0,0.0001127,2]
[423661198,1780284639000,-150.0,0.0001127,2]
[423661204,1780284639000,-150.0,0.00011292,2]
[423661200,1780284639000,-150.0,0.0001127,2]
[423661196,1780284639000,-150.0,0.0001127,2]
[423661197,1780284639000,-150.0,0.0001127,2]
[423661195,1780284639000,-188.40616197,0.00011264,2]
[423661201,1780284639000,-166.66,0.00011275,2]
[423661281,1780284640000,-166.66,0.00011613,2]
[423661279,1780284640000,-150.0,0.00011605,2]
[423661278,1780284640000,-150.0,0.00011599,2]
[423661270,1780284640000,-188.40616197,0.00011563,2]
[423661277,1780284640000,-188.40616197,0.00011599,2]
[423661274,1780284640000,-150.0,0.00011584,2]
[423661276,1780284640000,-188.40616197,0.00011587,2]
[423661273,1780284640000,-150.0,0.00011579,2]
[423661272,1780284640000,-188.40616197,0.00011575,2]
[423661271,1780284640000,-150.0,0.00011566,2]
[423661280,1780284640000,-188.40616197,0.00011611,2]
[423661275,1780284640000,-150.0,0.00011584,2]
[423661283,1780284640000,-188.40616197,0.00011623,2]
[423661282,1780284640000,-150.0,0.00011619,2]
[423661285,1780284640000,-150.0,0.00011626,2]
[423661286,1780284640000,-150.0,0.00011631,2]
[423661284,1780284640000,-150.0,0.00011626,2]
[423661288,1780284640000,-300.0,0.00011636,2]
[423661287,1780284640000,-188.40616197,0.00011635,2]
[423661290,1780284640000,-58406.21721842,0.00011637,2]
[423661291,1780284640000,-150.0,0.00011643,2]
[423661292,1780284640000,-188.40616197,0.00011647,2]
[423661294,1780284640000,-150.0,0.00011654,2]
[423661297,1780284640000,-150.0,0.00011665,2]
[423661296,1780284640000,-188.40616197,0.00011659,2]
[423661268,1780284640000,-150.0,0.00011554,2]
[423661289,1780284640000,-300.0,0.00011636,2]
[423661269,1780284640000,-150.0,0.00011555,2]
[423661298,1780284640000,-188.40616197,0.00011671,2]
[423661265,1780284640000,-150.0,0.00011547,2]
[423661239,1780284640000,-188.40616197,0.00011432,2]